bitfinex-derivatives/quotes_ETHF0:USTF0_20250505
["timestamp","ask_amount","ask_price","bid_price","bid_amount"]
[1746415303019,0.00636905,1796.5,1796.4,1.11328]
[1746415303212,0.00636905,1796.5,1796.4,3.62298]
[1746415304219,0.00636905,1796.5,1796.4,7.35498]
[1746415304420,0.00636905,1796.5,1796.4,12.35498]
[1746415304621,0.00636905,1796.5,1796.4,7.35498]
[1746415304820,0.00636905,1796.5,1796.4,12.35498]
[1746415305123,0.00636905,1796.5,1796.4,7.35498]
[1746415305316,0.00636905,1796.5,1796.4,12.35498]
[1746415306020,1.7116,1796.9,1796.8,1.11303]
[1746415306419,1.7116,1796.9,1796.8,3.65763]
[1746415307523,1.11289,1797.1,1796.8,2.5446]
[1746415307724,1.6445,1797.1,1797.0,1.11291]
[1746415308115,7.43529919,1797.3,1797.2,1.11278]
[1746415308320,9.07979919,1797.3,1797.2,1.11278]
[1746415310725,1.6445,1797.3,1797.2,1.11278]
[1746415311829,6.93662,1797.5,1797.3,1.11272]
[1746415312023,1.6741,1797.4,1797.3,1.11272]
[1746415314830,1.6741,1797.4,1797.2,1.6776]
[1746415315332,1.6741,1797.4,1797.3,1.11272]
[1746415315528,1.11272,1797.3,1797.2,1.6776]
[1746415316033,2.78679,1797.4,1797.2,2.79038]
[1746415316825,1.11272,1797.3,1797.2,1.6776]
[1746415317131,2.82922,1797.3,1797.2,1.6776]
[1746415318325,1.11278,1797.2,1797.1,0.8299]
[1746415318632,2.82928,1797.2,1797.0,7.19648]
[1746415318831,3.69828,1797.2,1797.0,7.98938]
[1746415319233,2.5855,1797.2,1797.1,1.11284]
[1746415319433,1.11277,1797.3,1797.1,1.11284]
[1746415319634,2.77707,1797.3,1797.2,1.7441]
[1746415320432,1.11315,1796.6,1796.4,11.12604909]
[1746415320732,4.32095,1796.6,1796.4,18.57630124]
[1746415320928,4.32097,1796.6,1796.4,10.78695215]
[1746415321129,1.6643,1796.5,1796.4,10.78695215]
[1746415322434,2.77752,1796.5,1796.4,10.78695215]
[1746415323038,1.6643,1796.5,1796.4,10.78695215]
[1746415324831,1.6643,1796.5,1796.4,11.90023215]
[1746415325033,1.11312,1796.7,1796.4,11.90019215]
[1746415325334,6.02292,1796.7,1796.5,1.7452]
[1746415326037,1.11315,1796.6,1796.5,1.7452]
[1746415326533,2.81515,1796.6,1796.5,1.7452]
[1746415327638,6.02295,1796.6,1796.5,1.7452]
[1746415328136,2.81515,1796.6,1796.5,1.7452]
[1746415328329,6.02295,1796.6,1796.5,1.7452]
[1746415329934,4.9098,1796.6,1796.5,1.7452]
[1746415330337,6.02295,1796.6,1796.5,1.7452]
[1746415331439,2.81515,1796.6,1796.5,1.7452]
[1746415331739,6.02295,1796.6,1796.5,1.7452]
[1746415332340,2.81515,1796.6,1796.5,1.7452]
[1746415332538,6.02295,1796.6,1796.5,1.7452]
[1746415334134,1.11322,1796.5,1796.4,1.5926]
[1746415334338,1.7432,1796.5,1796.4,2.70588]
[1746415334536,1.7432,1796.5,1796.4,4.28838]
[1746415334840,2.85642,1796.5,1796.4,4.28838]
[1746415335038,1.7432,1796.5,1796.4,4.28838]
[1746415335542,2.85642,1796.5,1796.4,3.1751]
[1746415336040,2.85642,1796.5,1796.4,1.5926]
[1746415336239,3.69942,1796.5,1796.4,1.5926]
[1746415339844,1.7432,1796.5,1796.4,2.70588]
[1746415340143,1.7432,1796.5,1796.4,4.38458]
[1746415340645,4.32099,1796.6,1796.5,1.11322]
[1746415340846,3.2078,1796.6,1796.5,2.79192]
[1746415342146,3.2078,1796.6,1796.5,6.52392]
[1746415352245,1.11308,1796.8,1796.7,1.11309]
[1746415352451,4.32088,1796.8,1796.7,4.72509]
[1746415353949,3.2078,1796.8,1796.7,4.72509]
[1746415354452,4.9107,1796.8,1796.7,4.72509]
[1746415355750,6.02373,1796.8,1796.7,4.72509]
[1746415355949,6.02373,1796.8,1796.7,3.612]
[1746415356857,6.02373,1796.8,1796.7,4.72509]
[1746415357158,4.9107,1796.8,1796.7,4.72509]
[1746415357458,4.9107,1796.8,1796.7,5.55459]
[1746415357660,4.9107,1796.8,1796.7,6.41689]
[1746415361561,6.02373,1796.8,1796.7,6.41689]
[1746415361761,6.02373,1796.8,1796.7,3.612]
[1746415362862,6.02373,1796.8,1796.7,4.72509]
[1746415363048,4.9107,1796.8,1796.7,4.72509]
[1746415364163,6.00393,1797.0,1796.9,1.11297]
[1746415364464,2.5236,1797.0,1796.9,1.11297]
[1746415364657,5.13552,1797.2,1796.8,6.09656]
[1746415364957,4.8591,1797.2,1797.1,1.11284]
[1746415365161,4.8591,1797.2,1797.1,4.72484]
[1746415366462,4.8591,1797.2,1797.1,7.18274]
[1746415368061,4.8591,1797.2,1797.1,7.98524]
[1746415368464,3.2078,1797.2,1797.1,7.98524]
[1746415368859,7.43529919,1797.3,1797.2,1.11278]
[1746415369060,7.43529919,1797.3,1797.2,2.76378]
[1746415369260,7.43529919,1797.3,1797.2,6.49578]
[1746415369462,2.82616,1797.4,1797.2,5.383]
[1746415369765,2.82616,1797.4,1797.3,1.11272]
[1746415369969,1.7135,1797.4,1797.3,1.11272]
[1746415370160,1.7135,1797.4,1797.3,4.84472]
[1746415370361,2.82616,1797.4,1797.3,4.84472]
[1746415370663,2.82616,1797.4,1797.3,3.732]
[1746415372267,2.82616,1797.4,1797.2,2.76378]
[1746415372467,1.6723,1797.3,1797.2,2.76378]
[1746415373163,1.6723,1797.3,1797.2,6.49578]
[1746415377574,5.12914,1797.5,1797.3,1.11268]
[1746415377870,1.6739,1797.4,1797.3,2.84498]
[1746415378268,2.78656,1797.4,1797.3,2.84498]
[1746415378772,1.6739,1797.4,1797.3,2.84498]
[1746415379876,2.78656,1797.4,1797.3,2.84498]
[1746415380075,2.78656,1797.4,1797.3,1.7323]
[1746415380276,1.11273,1797.3,1797.1,6.38343]
[1746415380478,2.74943,1797.3,1797.1,6.38343]
[1746415380671,2.74943,1797.3,1797.2,2.79738]
[1746415381474,1.6367,1797.3,1797.2,2.79738]
[1746415382368,3.2078,1797.4,1797.3,1.11272]
[1746415382677,5.95716,1797.4,1797.3,2.79732]
[1746415383677,4.8445,1797.4,1797.3,2.79732]
[1746415385781,5.95716,1797.4,1797.3,2.79732]
[1746415385979,5.95716,1797.4,1797.3,1.6846]
[1746415386180,1.11278,1797.2,1797.1,3.612]
[1746415386385,4.32058,1797.2,1797.1,3.612]
[1746415386686,3.2078,1797.2,1796.8,3.3613]
[1746415386981,4.32073,1797.0,1796.8,5.5363]
[1746415387175,1.6724,1796.9,1796.8,5.5363]
[1746415389282,2.78537,1796.9,1796.8,4.4233]
[1746415389581,2.78537,1796.9,1796.8,3.592]
[1746415392077,3.2078,1797.0,1796.8,7.324]
[1746415392283,6.04072,1797.0,1796.8,8.43701]
[1746415392486,1.72,1796.9,1796.8,8.43701]
[1746415392975,1.72,1796.9,1796.8,7.324]
[1746415393175,1.72,1796.9,1796.8,3.592]
[1746415393581,1.72,1796.9,1796.8,4.70503]
[1746415395283,1.72,1796.9,1796.8,6.39373]
[1746415397085,2.83297,1796.9,1796.8,5.2807]
[1746415397278,1.72,1796.9,1796.8,6.39373]
[1746415398384,2.83297,1796.9,1796.8,5.2807]
[1746415402385,9.50249,1796.9,1796.4,3.592]
[1746415402588,4.32098,1796.6,1796.4,7.19294]
[1746415402887,4.32098,1796.6,1796.5,1.6724]
[1746415403783,1.11322,1796.5,1796.4,3.592]
[1746415404079,4.42472,1796.5,1796.4,3.592]
[1746415404485,1.7335,1796.5,1796.4,4.70528]
[1746415404685,1.11334,1796.3,1796.2,7.45025215]
[1746415404882,4.32114,1796.3,1796.2,7.45025215]
[1746415405283,5.91304,1796.3,1796.2,7.45025215]
[1746415406095,9.64504,1796.3,1796.2,7.45025215]
[1746415406486,1.11353,1796.0,1795.9,5.2824]
[1746415406684,4.32133,1796.0,1795.9,5.2824]
[1746415406892,3.2078,1796.0,1795.9,5.2824]
[1746415407190,4.32133,1796.0,1795.9,9.0144]
[1746415410095,3.2078,1796.0,1795.9,10.12799]
[1746415411189,4.32133,1796.0,1795.9,9.0144]
[1746415411394,5.90803,1796.0,1795.9,7.325]
[1746415411794,5.90803,1796.0,1795.9,3.732]
[1746415411994,6.76763,1796.0,1795.9,3.732]
[1746415412197,1.11365,1795.8,1795.7,1.7316]
[1746415412391,1.11371,1795.7,1795.6,5.2272]
[1746415412588,2.70041,1795.7,1795.6,5.2272]
[1746415412789,1.11371,1795.7,1795.6,5.2272]
[1746415412988,4.3215,1795.8,1795.6,5.2272]
[1746415413293,4.3215,1795.8,1795.6,6.9588]
[1746415413493,4.3215,1795.8,1795.7,1.6773]
[1746415414896,2.78429,1795.7,1795.2,7.45025215]
[1746415415096,2.78429,1795.7,1795.3,1.6773]
[1746415415097,4.3217,1795.4,1795.3,1.6773]
[1746415415986,2.81386,1795.5,1795.3,1.6773]
[1746415416400,1.7,1795.4,1795.3,1.6773]
[1746415416787,2.8139,1795.4,1795.3,1.6773]
[1746415416990,6.0217,1795.4,1795.3,1.6773]
[1746415417184,1.11396,1795.3,1795.2,1.6039]
[1746415417389,1.11396,1795.3,1795.2,3.1857]
[1746415419599,6.02174,1795.4,1795.2,3.1857]
[1746415419797,3.2078,1795.4,1795.2,3.1857]
[1746415420100,5.824,1795.6,1795.5,1.11384]
[1746415420302,5.824,1795.6,1795.5,4.70884]
[1746415421195,5.824,1795.6,1795.5,8.44084]
[1746415421797,3.2078,1795.7,1795.6,1.11377]
[1746415422103,1.6349,1796.0,1795.6,3.3287]
[1746415422299,3.2078,1795.8,1795.7,1.11371]
[1746415422501,3.2078,1795.8,1795.7,2.71891]
[1746415423101,3.2078,1795.8,1795.7,6.45091]
[1746415435221,3.2078,1795.9,1795.8,1.11359]
[1746415435517,3.2078,1795.9,1795.8,6.28579]
[1746415436120,3.2078,1795.9,1795.8,10.01779]
[1746415436322,2.80956,1796.0,1795.9,1.11359]
[1746415436613,6.01736,1796.0,1795.8,10.01781]
[1746415436918,3.2078,1796.0,1795.9,1.11359]
[1746415437121,3.2078,1796.0,1795.9,7.22929]
[1746415438210,4.933,1796.0,1795.9,7.22929]
[1746415440625,6.04653,1796.0,1795.9,7.22929]
[1746415440922,4.933,1796.0,1795.9,4.84559]
[1746415441121,6.86123,1796.0,1795.9,4.84559]
[1746415441526,6.86123,1796.0,1795.9,3.732]
[1746415442624,6.86123,1796.0,1795.9,4.84559]
[1746415442828,5.7477,1796.0,1795.9,4.84559]
[1746415443122,4.933,1796.0,1795.9,4.84559]
[1746415443425,4.933,1796.0,1795.9,6.51019]
[1746415444325,3.2078,1796.0,1795.9,6.51019]
[1746415444630,3.2078,1796.0,1795.9,7.31439]
[1746415450521,1.6935,1796.1,1796.0,1.11353]
[1746415450732,4.9013,1796.1,1796.0,3.59013]
[1746415451221,4.9013,1796.1,1796.0,7.32213]
[1746415451727,4.9013,1796.1,1796.0,6.2086]
[1746415451919,6.01476,1796.1,1796.0,3.732]
[1746415452921,4.9013,1796.1,1796.0,4.84553]
[1746415453528,5.7098,1796.1,1796.0,4.84553]
[1746415454327,6.82326,1796.1,1796.0,4.84553]
[1746415454825,11.82326,1796.1,1796.0,3.732]
[1746415455326,1.11359,1795.9,1795.8,4.70765]
[1746415455527,4.32139,1795.9,1795.8,4.70765]
[1746415455918,5.90169,1795.9,1795.8,4.70765]
[1746415456724,4.7881,1795.9,1795.8,4.70765]
[1746415457233,4.7881,1795.9,1795.8,8.43965]
[1746415458632,1.5803,1795.9,1795.8,8.43965]
[1746415463233,4.0163,1796.1,1796.0,1.11353]
[1746415463433,5.6457,1796.1,1796.0,1.11353]
[1746415464135,5.6457,1796.1,1796.0,4.84553]
[1746415464337,5.6457,1796.1,1796.0,6.49193]
[1746415465138,4.8372,1796.1,1796.0,6.49193]
[1746415466638,3.2078,1796.1,1796.0,6.49193]
[1746415469841,4.81,1796.1,1796.0,6.49193]
[1746415471238,1.11359,1795.9,1795.8,7.45025215]
[1746415471534,4.32139,1795.9,1795.8,7.45025215]
[1746415471740,15.14539,1795.9,1795.8,7.45025215]
[1746415471937,17.51109,1795.9,1795.8,7.45025215]
[1746415473443,16.3975,1795.9,1795.3,15.39478215]
[1746415473638,3.2078,1795.5,1795.3,15.39478215]
[1746415473844,1.5727,1795.4,1795.3,15.39478215]
[1746415474343,1.5727,1795.4,1795.3,19.12678215]
[1746415475538,4.0008,1795.5,1795.4,1.1139]
[1746415475733,5.5745,1795.5,1795.4,2.7116]
[1746415476144,5.5745,1795.5,1795.4,6.4436]
[1746415476644,3.2078,1795.5,1795.4,6.4436]
[1746415478342,4.7815,1795.8,1795.5,1.1138]
[1746415478538,1.11371,1795.7,1795.5,1.1138]
[1746415478741,4.32159,1795.6,1795.4,6.47839]
[1746415478943,1.5826,1795.5,1795.4,6.47839]
[1746415479247,3.2078,1795.6,1795.4,6.47839]
[1746415479443,3.2078,1795.6,1795.5,1.6325]
[1746415480147,3.2078,1795.6,1795.5,5.3645]
[1746415480344,4.7904,1795.8,1795.5,5.3645]
[1746415480546,3.2078,1795.8,1795.7,1.11371]
[1746415480748,6.8556,1796.1,1795.8,1.11362]
[1746415480948,1.11353,1796.0,1795.9,0.8318]
[1746415481249,1.11353,1796.0,1795.9,2.4096]
[1746415481450,2.81123,1796.0,1795.9,2.4096]
[1746415481746,1.6977,1796.0,1795.9,2.4096]
[1746415482146,1.6977,1796.0,1795.9,6.1416]
[1746415482549,2.81123,1796.0,1795.9,6.1416]
[1746415483549,1.6977,1796.0,1795.9,6.1416]
[1746415483757,3.2078,1796.1,1795.9,7.25519]
[1746415483951,3.2078,1796.1,1796.0,1.7404]
[1746415484653,4.32126,1796.1,1796.0,1.7404]
[1746415485155,4.32126,1796.1,1796.0,5.4724]
[1746415489654,4.32126,1796.1,1796.0,3.732]
[1746415489952,5.18066,1796.1,1796.0,3.732]
[1746415491157,5.18066,1796.1,1795.9,8.1578]
[1746415491349,2.83053,1796.0,1795.9,8.1578]
[1746415493958,2.83053,1796.0,1795.9,9.8992]
[1746415494355,6.03833,1796.0,1795.9,9.8992]
[1746415495153,6.85333,1796.0,1795.9,9.8992]
[1746415500462,6.85333,1796.0,1795.9,7.326]
[1746415501162,6.85333,1796.0,1795.9,3.594]
[1746415502966,1.11376,1795.7,1795.6,3.6]
[1746415503169,4.32156,1795.7,1795.6,3.6]
[1746415505063,6.72606,1795.7,1795.6,3.6]
[1746415505564,1.11384,1795.5,1795.4,1.5969]
[1746415505870,3.2078,1795.5,1795.1,7.45025215]
[1746415506066,3.2078,1795.3,1795.1,7.45025215]
[1746415506274,2.70952,1795.2,1795.1,7.45025215]
[1746415506569,3.50072,1795.2,1795.1,7.45025215]
[1746415506769,3.50072,1795.2,1795.1,9.04715215]
[1746415508372,3.50072,1795.2,1795.1,7.45025215]
[1746415508874,1.11408,1795.1,1795.0,3.6]
[1746415509066,5.97168,1795.1,1795.0,3.6]
[1746415512178,5.97168,1795.1,1795.0,7.332]
[1746415516579,5.97168,1795.1,1795.0,3.732]
[1746415516779,6.82748,1795.1,1795.0,3.732]
[1746415517175,1.11415,1795.0,1794.9,1.6636]
[1746415517476,2.84335,1795.0,1794.9,1.6636]
[1746415518278,3.2078,1795.1,1794.9,2.77781]
[1746415518481,3.2078,1795.1,1795.0,1.11415]
[1746415518682,3.2078,1795.4,1795.2,1.114]
[1746415518980,3.2078,1795.4,1795.3,2.5046]
[1746415519180,3.2078,1795.4,1795.3,6.2366]
[1746415519477,4.3217,1795.4,1795.3,6.2366]
[1746415520785,3.2078,1795.4,1795.3,6.2366]
[1746415522287,3.2078,1795.4,1795.3,7.35056]
[1746415527186,4.32146,1795.8,1795.3,11.2366]
[1746415527383,4.9446,1796.0,1795.4,2.523]
[1746415527576,1.11363,1795.9,1795.7,1.1137]
[1746415527783,1.11363,1795.9,1795.8,3.3162]
[1746415528083,1.11363,1795.9,1795.8,7.0482]
[1746415529687,6.05817,1796.0,1795.8,7.0482]
[1746415529887,6.05817,1796.0,1795.9,1.7243]
[1746415531086,6.05817,1796.0,1795.9,5.4563]
[1746415531592,6.05817,1796.0,1795.9,3.732]
[1746415532187,1.11363,1795.9,1795.6,4.46263]
[1746415532388,4.7868,1795.8,1795.7,1.11371]
[1746415532585,4.7868,1795.8,1795.7,2.79431]
[1746415532980,4.7868,1795.8,1795.7,1.6806]
[1746415533180,5.90045,1795.8,1795.7,1.6806]
[1746415533386,4.7868,1795.8,1795.7,1.6806]
[1746415533588,4.7868,1795.8,1795.7,2.79431]
[1746415534492,3.2078,1795.8,1795.7,2.79431]
[1746415535289,3.2078,1795.8,1795.7,6.52631]
[1746415543498,5.92847,1796.0,1795.8,1.11361]
[1746415543693,5.92847,1796.0,1795.9,1.11359]
[1746415543893,5.92847,1796.0,1795.9,2.74459]
[1746415544094,5.92847,1796.0,1795.9,6.47659]
[1746415544600,3.2078,1796.0,1795.9,8.09559]
[1746415554905,4.9009,1796.0,1795.9,8.09559]
[1746415555300,6.01443,1796.0,1795.9,3.732]
[1746415555625,6.01443,1796.0,1795.9,4.84559]
[1746415558010,4.9009,1796.0,1795.9,4.84559]
[1746415558907,1.11396,1795.3,1795.2,7.45025215]
[1746415559109,4.32176,1795.3,1795.2,7.45025215]
[1746415559903,3.2078,1795.3,1795.2,7.45025215]
[1746415560302,5.7206,1795.3,1795.2,7.45025215]
[1746415560713,6.83456,1795.3,1795.2,7.45025215]
[1746415563216,6.83456,1795.3,1795.1,1.5747]
[1746415563507,3.2078,1795.3,1795.2,4.70802]
[1746415563711,1.7225,1795.5,1795.2,3.594]
[1746415564013,2.83634,1795.5,1795.3,4.48205]
[1746415564207,2.83634,1795.5,1795.3,3.3681]
[1746415564412,1.7225,1795.4,1795.3,3.3681]
[1746415564712,1.7225,1795.4,1795.3,4.48206]
[1746415564912,1.7225,1795.4,1795.3,3.3681]
[1746415565112,1.7225,1795.4,1795.3,7.1001]
[1746415565302,1.7225,1795.4,1795.3,8.21406]
[1746415566321,1.7225,1795.4,1795.3,7.1001]
[1746415566817,1.7225,1795.4,1795.3,8.21406]
[1746415571818,2.8364,1795.4,1795.3,7.1001]
[1746415572020,1.7225,1795.4,1795.3,8.21406]
[1746415572315,6.0442,1795.4,1795.3,3.732]
[1746415573112,1.11404,1795.2,1795.0,2.73454]
[1746415573317,4.32184,1795.2,1795.0,2.73454]
[1746415574121,4.32184,1795.2,1795.0,6.46654]
[1746415574314,5.90484,1795.2,1795.0,6.46654]
[1746415575223,5.90484,1795.2,1795.0,5.3524]
[1746415575421,1.7128,1795.1,1795.0,5.3524]
[1746415576524,1.7128,1795.1,1795.0,6.46655]
[1746415578026,4.32183,1795.2,1795.0,6.4665]
[1746415578324,3.2078,1795.2,1795.1,2.81038]
[1746415579124,4.32182,1795.2,1795.1,1.6963]
[1746415579327,5.97782,1795.2,1795.1,1.6963]
[1746415581925,3.2078,1795.2,1795.1,2.81038]
[1746415582322,4.32182,1795.2,1795.1,1.6963]
[1746415583623,3.2078,1795.2,1795.1,1.6963]
[1746415583828,3.2078,1795.2,1795.1,2.81038]
[1746415584229,2.7665,1795.3,1795.1,2.81038]
[1746415584431,2.7665,1795.3,1795.2,2.4877]
[1746415584627,5.9743,1795.3,1795.2,2.4877]
[1746415585037,1.11408,1795.1,1795.0,3.732]
[1746415585226,1.11432,1794.8,1794.6,6.8998]
[1746415585529,1.11433,1794.7,1794.6,6.8998]
[1746415585726,3.2078,1794.9,1794.6,3.594]
[1746415585930,4.32213,1794.7,1794.6,3.594]
[1746415592436,1.11439,1794.6,1794.5,5.3894]
[1746415592629,2.76289,1794.6,1794.5,3.732]
[1746415592826,3.57519,1794.6,1794.5,3.732]
[1746415596730,6.78299,1794.6,1794.5,3.732]
[1746415600142,6.78299,1794.6,1794.4,3.287]
[1746415600438,5.6686,1794.6,1794.4,4.40147]
[1746415600639,3.2078,1794.6,1794.5,1.7136]
[1746415602240,3.2078,1794.6,1794.5,5.4456]
[1746415602542,4.32219,1794.6,1794.5,5.4456]
[1746415603844,3.2078,1794.6,1794.5,5.4456]
[1746415604446,3.2078,1794.6,1794.5,6.56006]
[1746415606747,3.2078,1794.6,1794.5,5.4456]
[1746415607147,4.32219,1794.6,1794.5,5.4456]
[1746415607347,4.3172433,1794.6,1794.5,5.4456]
[1746415607952,4.8998533,1794.6,1794.5,5.4456]
[1746415608142,6.0142433,1794.6,1794.5,5.4456]
[1746415610245,4.8998533,1794.6,1794.5,6.56006]
[1746415611153,4.8998533,1794.6,1794.5,5.4456]
[1746415611555,4.8998533,1794.6,1794.5,6.56006]
[1746415611754,3.2028533,1794.6,1794.5,6.56006]
[1746415615956,4.3172433,1794.6,1794.5,6.56006]
[1746415616658,3.2028533,1794.6,1794.5,6.56006]
[1746415618558,4.3172433,1794.6,1794.5,6.56006]
[1746415618958,4.3172433,1794.6,1794.5,5.4456]
[1746415619145,5.9035433,1794.6,1794.5,5.4456]
[1746415619347,4.7891533,1794.6,1794.5,6.56006]
[1746415620752,3.2028533,1794.6,1794.5,6.56006]
[1746415626471,4.7987533,1794.6,1794.5,6.56006]
[1746415627472,5.9131433,1794.6,1794.5,6.56006]
[1746415627977,5.9131433,1794.6,1794.5,3.732]
[1746415628173,4.7987533,1794.6,1794.2,4.75163]
[1746415628365,4.32235,1794.4,1794.2,4.75163]
[1746415628565,1.6337,1794.3,1794.2,4.75163]
[1746415628873,1.6337,1794.3,1794.2,12.20188215]
[1746415629060,1.6337,1794.3,1794.2,15.93388215]
[1746415629266,1.6337,1794.3,1794.2,17.62538215]
[1746415632169,1.6337,1794.3,1794.2,10.17513]
[1746415633471,3.2078,1794.4,1794.3,1.11458]
[1746415633771,4.7829,1794.4,1794.3,3.70788]
[1746415634070,4.7829,1794.4,1794.3,7.43988]
[1746415636971,1.5751,1794.4,1794.3,7.43988]
[1746415640175,2.68962,1794.4,1794.3,3.732]
[1746415640572,3.54152,1794.4,1794.3,3.732]
[1746415641068,3.54152,1794.4,1794.3,4.84658]
[1746415641268,1.5751,1794.4,1794.3,4.84658]
[1746415641472,1.5751,1794.4,1794.3,6.48618]
[1746415645073,2.68962,1794.4,1794.3,3.732]
[1746415645278,1.11464,1794.2,1794.1,18.57630124]
[1746415645478,4.32244,1794.2,1794.1,7.45025215]
[1746415645977,5.628,1794.2,1794.1,7.45025215]
[1746415646178,6.74264,1794.2,1794.1,7.45025215]
[1746415646780,5.628,1794.2,1794.1,7.45025215]
[1746415646981,5.628,1794.2,1794.1,8.56495215]
[1746415647881,5.628,1794.2,1794.1,7.45025215]
[1746415648076,2.4202,1794.2,1794.1,7.45025215]
[1746415648282,2.4202,1794.2,1794.1,8.56495215]
[1746415648485,5.628,1794.2,1794.1,11.10035215]
[1746415648788,4.7839,1794.2,1794.1,3.6501]
[1746415649181,3.2078,1794.2,1794.1,3.6501]
[1746415649385,11.88513,1794.4,1794.2,1.11462]
[1746415649578,1.7388,1794.3,1794.2,2.83632]
[1746415650283,1.7388,1794.3,1794.2,6.56832]
[1746415652386,2.85338,1794.3,1794.2,3.732]
[1746415653088,2.85338,1794.3,1794.2,5.4357]
[1746415661193,2.85338,1794.3,1794.2,3.732]
[1746415662090,1.7388,1794.3,1794.2,3.732]
[1746415662293,3.2078,1794.4,1794.2,3.732]
[1746415662592,4.32232,1794.4,1794.3,3.26]
[1746415662789,3.2078,1794.4,1794.3,3.26]
[1746415662995,7.43529919,1794.8,1794.7,1.11433]
[1746415663291,10.64309919,1794.8,1794.7,3.631]
[1746415663490,11.75736919,1794.8,1794.7,3.631]
[1746415663689,13.40016919,1794.8,1794.7,3.631]
[1746415663890,14.24146919,1794.8,1794.7,3.631]
[1746415664082,14.24146919,1794.8,1794.7,7.363]
[1746415664283,15.09056919,1794.8,1794.7,7.363]
[1746415664482,13.97629919,1794.8,1794.7,8.47733]
[1746415664688,13.12719919,1794.8,1794.7,8.47733]
[1746415664882,13.12719919,1794.8,1794.7,10.91373]
[1746415665281,14.24146919,1794.8,1794.7,9.7994]
[1746415665482,13.12719919,1794.8,1794.7,10.91373]
[1746415665690,14.24146919,1794.8,1794.7,9.7994]
[1746415665886,14.24146919,1794.8,1794.7,7.363]
[1746415666287,6.80617,1794.8,1794.7,3.631]
[1746415666791,6.80617,1794.8,1794.7,4.74533]
[1746415666992,5.6919,1794.8,1794.7,4.74533]
[1746415667189,5.6919,1794.8,1794.7,7.29073]
[1746415668595,6.80617,1794.8,1794.7,7.29073]
[1746415669094,6.80617,1794.8,1794.7,11.02273]
[1746415669588,5.6919,1794.8,1794.7,11.02273]
[1746415670897,5.6919,1794.8,1794.7,9.9084]
[1746415671097,6.80617,1794.8,1794.7,9.9084]
[1746415671397,6.80617,1794.8,1794.7,11.02273]
[1746415671697,6.80617,1794.8,1794.7,9.9084]
[1746415671995,5.6919,1794.8,1794.7,11.02273]
[1746415674901,3.2078,1794.8,1794.7,11.02273]
[1746415679112,2.83671,1794.9,1794.8,1.11427]
[1746415679311,6.04451,1794.9,1794.8,2.75197]
[1746415680113,4.9303,1794.9,1794.8,6.48397]
[1746415680412,6.04451,1794.9,1794.8,6.48397]
[1746415680712,6.04451,1794.9,1794.8,5.3697]
[1746415681613,6.04451,1794.9,1794.8,6.48397]
[1746415681912,4.9303,1794.9,1794.8,6.48397]
[1746415684016,1.7225,1794.9,1794.8,6.48397]
[1746415685312,6.03642,1795.1,1794.9,1.11421]
[1746415685517,5.18728,1795.1,1795.0,0.8487]
[1746415685717,5.18728,1795.1,1795.0,1.6408]
[1746415686116,5.18728,1795.1,1795.0,5.3728]
[1746415686418,5.18728,1795.1,1795.0,7.0913]
[1746415689924,5.18728,1795.1,1795.0,10.7133]
[1746415694111,5.18728,1795.1,1795.0,8.9948]
[1746415694316,5.18728,1795.1,1795.0,7.354]
[1746415694609,1.11439,1794.6,1794.5,3.622]
[1746415694813,1.11452,1794.4,1794.3,7.45025215]
[1746415695016,4.32232,1794.4,1794.3,7.45025215]
[1746415695424,6.01052,1794.4,1794.3,7.45025215]
[1746415698027,6.01052,1794.4,1794.2,4.40062]
[1746415698419,6.01052,1794.4,1794.2,3.286]
[1746415698619,1.7359,1794.3,1794.2,3.286]
[1746415698826,1.7359,1794.3,1794.2,4.40064]
[1746415699124,1.7359,1794.3,1794.2,8.13264]
[1746415699325,1.7359,1794.3,1794.2,3.732]
[1746415699326,2.85048,1794.3,1794.2,3.732]
[1746415703431,4.9437,1794.3,1794.2,3.732]
[1746415703635,3.2078,1794.3,1794.2,4.84664]
[1746415703819,3.2078,1794.3,1794.2,7.26384]
[1746415704526,3.2078,1794.3,1794.2,6.1492]
[1746415705124,3.2078,1794.3,1794.2,7.26384]
[1746415705333,3.2078,1794.3,1794.2,6.1492]
[1746415708232,4.32238,1794.3,1794.2,6.1492]
[1746415708432,3.2078,1794.3,1794.2,6.1492]
[1746415708734,4.32238,1794.3,1794.2,6.1492]
[1746415709029,3.2078,1794.3,1794.2,6.1492]
[1746415709234,4.32238,1794.3,1794.2,6.1492]
[1746415709828,3.2078,1794.3,1794.2,6.1492]
[1746415710128,4.32238,1794.3,1794.2,6.1492]
[1746415710331,3.2078,1794.3,1794.2,6.1492]
[1746415710528,3.2078,1794.3,1794.2,7.26384]
[1746415710928,1.6805,1794.4,1794.3,1.11458]
[1746415711134,2.79502,1794.4,1794.3,7.336]
[1746415712236,2.79502,1794.4,1794.3,3.604]
[1746415713135,2.79502,1794.4,1794.3,7.336]
[1746415713836,6.00282,1794.4,1794.3,7.336]
[1746415716241,6.00282,1794.4,1794.3,3.604]
[1746415717837,2.79502,1794.4,1794.3,3.604]
[1746415718030,6.00282,1794.4,1794.3,3.604]
[1746415720133,6.00282,1794.4,1794.3,5.2448]
[1746415720338,4.8883,1794.4,1794.3,5.2448]
[1746415720531,6.00282,1794.4,1794.3,5.2448]
[1746415720727,4.8883,1794.4,1794.3,6.35938]